bitfinex/quotes_ETHUSD_20240612
["timestamp","ask_amount","ask_price","bid_price","bid_amount"]
[1718195338429,2.82571,3539.0,3537.8,2.82659]
[1718195338735,2.82571,3539.0,3537.9,1.43344514]
[1718195339113,2.82571,3539.0,3537.8,2.82659]
[1718195339309,3.0,3538.9,3537.8,2.82659]
[1718195339635,3.408381,3538.8,3537.3,0.2934298]
[1718195339833,3.408381,3538.8,3537.4,1.43344514]
[1718195340209,3.0,3538.7,3537.4,1.43344514]
[1718195341112,3.0,3538.7,3537.5,2.82684]
[1718195341316,3.0,3538.7,3537.6,1.43344514]
[1718195341518,0.6408381,3538.6,3537.6,1.43344514]
[1718195341740,0.6408381,3538.6,3537.7,2.82666]
[1718195342042,3.0,3539.3,3537.8,1.43344514]
[1718195344035,3.0,3539.3,3537.9,2.82651]
[1718195344336,3.0,3539.3,3538.0,1.43344514]
[1718195344756,7.49,3539.4,3538.1,0.05652566]
[1718195345039,10.31484,3540.1,3538.2,1.98344514]
[1718195345405,2.82484,3540.1,3538.3,2.88271927]
[1718195345743,2.82484,3540.1,3538.4,1.98344514]
[1718195346530,3.0,3540.0,3538.4,1.98344514]
[1718195347238,3.0,3540.0,3538.5,0.05651655]
[1718195347445,0.582484,3539.9,3538.8,2.8258]
[1718195347633,0.582484,3539.9,3538.9,1.43344514]
[1718195347836,2.82484,3540.1,3538.9,1.43344514]
[1718195349241,3.0,3540.0,3538.9,1.43344514]
[1718195350366,3.0,3540.0,3538.4,0.55]
[1718195350367,2.82495,3539.9,3538.4,0.55]
[1718195350688,2.82495,3539.9,3538.6,2.82592]
[1718195350836,2.82495,3539.9,3538.7,1.43344514]
[1718195351031,0.582495,3539.8,3538.8,2.8258]
[1718195351267,0.582495,3539.8,3538.9,1.43344514]
[1718195351462,3.0,3540.4,3539.0,2.82564]
[1718195351678,3.0,3540.4,3539.1,1.43344514]
[1718195352478,3.0,3540.4,3539.2,2.82546]
[1718195352686,3.0,3540.4,3539.3,1.43344514]
[1718195352851,3.0,3540.4,3539.4,2.82532]
[1718195353057,0.3,3540.3,3539.5,1.43344514]
[1718195353252,0.15,3540.8,3539.5,1.43344514]
[1718195353891,0.15,3540.8,3539.6,2.82515]
[1718195354066,0.15,3540.8,3539.7,1.43344514]
[1718195355376,2.82354,3541.7,3539.8,2.88150762]
[1718195355581,2.82354,3541.7,3539.9,1.98344514]
[1718195356153,2.04463273,3541.9,3539.9,1.43344514]
[1718195356488,2.82393,3541.2,3539.9,1.43344514]
[1718195356688,0.282393,3541.1,3539.9,1.43344514]
[1718195357392,3.282393,3541.1,3539.9,1.43344514]
[1718195358404,3.282393,3541.1,3540.1,2.8247]
[1718195358563,0.282393,3541.1,3540.2,1.98344514]
[1718195358895,3.0,3541.0,3540.2,1.43344514]
[1718195359064,2.82391,3541.2,3540.2,1.43344514]
[1718195359393,2.82409,3541.0,3539.5,2.82519]
[1718195359590,2.82409,3541.0,3539.6,1.43344514]
[1718195360575,3.0,3541.3,3539.7,2.8815898]
[1718195360896,0.3,3541.2,3539.8,2.03993891]
[1718195361468,0.3,3541.2,3539.8,1.98344514]
[1718195362709,2.82404,3541.1,3539.8,1.43344514]
[1718195362894,3.0,3541.0,3539.8,1.43344514]
[1718195364274,2.82417,3540.9,3539.8,1.43344514]
[1718195364513,3.582417,3540.8,3539.8,1.43344514]
[1718195364686,2.82445,3540.6,3539.1,5.82553]
[1718195364872,2.82445,3540.6,3539.2,1.43344514]
[1718195365811,2.82445,3540.6,3539.4,2.82529]
[1718195366013,2.82445,3540.6,3539.5,1.43344514]
[1718195366218,0.6406867,3540.5,3539.5,1.43344514]
[1718195366689,2.82454,3540.4,3538.8,2.82574]
[1718195366880,2.82454,3540.4,3538.9,4.98344514]
[1718195367201,3.0,3540.3,3538.9,1.43344514]
[1718195367401,2.82476,3540.2,3538.9,1.43344514]
[1718195367617,2.82489,3540.0,3538.9,1.43344514]
[1718195370586,3.0,3539.9,3538.9,1.43344514]
[1718195370833,2.82502,3539.8,3538.2,2.82626]
[1718195371033,3.0,3539.7,3538.3,1.43344514]
[1718195372513,3.0,3539.7,3538.4,3.43258846]
[1718195372835,0.582502,3539.6,3538.5,1.43344514]
[1718195373015,3.0,3539.7,3538.6,2.82596]
[1718195373226,3.0,3539.7,3538.7,1.43344514]
[1718195373394,3.0,3539.7,3538.8,2.8258]
[1718195373733,0.282476,3540.1,3538.9,1.43344514]
[1718195374289,2.82459,3540.4,3539.0,2.88214954]
[1718195374487,0.07243477,3541.9,3539.7,1.43344514]
[1718195374687,2.82361,3541.6,3540.1,2.82473]
[1718195376005,2.82361,3541.6,3540.2,1.43344514]
[1718195376841,0.07243477,3541.9,3540.3,0.05648792]
[1718195377009,0.07243477,3541.9,3540.4,0.55]
[1718195377188,0.07243477,3541.9,3540.5,1.48992664]
[1718195377394,0.07243477,3541.9,3540.6,2.8808415]
[1718195377594,0.07243477,3541.9,3541.2,1.43344514]
[1718195378118,0.07243477,3541.9,3541.3,0.55]
[1718195378321,0.07243477,3541.9,3541.4,1.43344514]
[1718195379329,0.07243477,3541.9,3541.8,1.43344514]
[1718195379622,0.07243477,3541.9,3541.8,1.98344514]
[1718195381164,0.44170853,3544.2,3541.9,2.82328]
[1718195381479,2.04217085,3544.1,3542.5,2.82284]
[1718195381632,2.04217085,3544.1,3542.6,1.43344514]
[1718195381833,2.82176,3543.9,3542.6,1.43344514]
[1718195383744,3.0,3543.8,3542.6,1.43344514]
[1718195385043,3.0,3543.8,3542.7,0.55]
[1718195385252,3.78639308,3543.8,3542.8,1.43344514]
[1718195389358,3.78639308,3543.8,3542.3,2.82295]
[1718195389558,2.82193,3543.7,3542.4,1.43344514]
[1718195389758,3.0,3543.6,3542.4,1.43344514]
[1718195392094,3.0,3543.6,3542.5,2.8228]
[1718195392265,0.37863931,3543.5,3542.6,1.43344514]
[1718195392597,2.04217085,3544.1,3542.6,1.43344514]
[1718195392598,2.82189,3543.8,3542.6,1.43344514]
[1718195392794,3.0,3543.7,3542.6,1.43344514]
[1718195393660,3.0,3543.7,3542.7,1.43344514]
[1718195394062,3.0,3543.7,3541.6,3.0]
[1718195394263,2.82201,3543.6,3542.4,2.82289]
[1718195394464,3.582201,3543.5,3542.5,1.43344514]
[1718195395275,2.82216,3543.4,3541.8,2.8234]
[1718195395482,3.0,3543.3,3541.9,1.43344514]
[1718195396608,3.0,3543.3,3542.0,4.80666514]
[1718195396990,3.0,3543.3,3542.0,4.25666514]
[1718195397321,0.6404361,3543.2,3542.0,4.25666514]
[1718195397812,0.6404361,3543.2,3542.3,2.82297]
[1718195398017,3.0,3543.6,3542.4,1.43344514]
[1718195398319,2.04217085,3544.1,3541.2,3.0]
[1718195398522,2.82106,3544.8,3543.1,4.25580514]
[1718195398688,2.82106,3544.8,3543.4,2.82214]
[1718195398893,0.4995,3545.0,3543.6,2.82196]
[1718195399114,0.4995,3545.0,3544.2,2.82151]
[1718195399682,0.4995,3545.0,3544.2,1.43344514]
[1718195400001,4.3e-06,3545.4,3544.8,2.82096]
[1718195400206,4.3e-06,3545.4,3545.2,2.82066]
[1718195400391,4.3e-06,3545.4,3545.3,1.41790463]
[1718195400594,2.81878,3547.7,3545.4,2.82052]
[1718195400823,0.75,3548.5,3546.4,2.82]
[1718195400995,7.98422034,3550.0,3547.3,1.32]
[1718195401212,0.29359255,3551.1,3548.5,4.89]
[1718195401417,1.47722752,3561.7,3551.1,0.29359255]
[1718195401723,2.80968,3559.2,3555.2,6.95]
[1718195401882,2.8028,3567.9,3559.3,0.75]
[1718195402081,3.0,3562.4,3562.3,6.95]
[1718195402322,2.80339,3567.2,3562.4,2.62012947]
[1718195402519,2.80339,3567.2,3563.8,0.75]
[1718195402867,0.00289,3569.0,3565.9,1.43344514]
[1718195403002,0.00289,3569.0,3566.6,1.43344514]
[1718195403199,0.00289,3569.0,3567.6,1.43344514]
[1718195403459,0.00289,3569.0,3568.8,0.75]
[1718195403617,0.00289,3569.0,3567.7,8.4088]
[1718195403618,0.27583102,3573.2,3567.7,8.9588]
[1718195403816,1.44882237,3577.3,3570.3,5.2273]
[1718195404024,1.120838,3574.9,3573.6,2.4473]
[1718195404228,4.87e-06,3577.5,3574.1,2.77]
[1718195404512,0.75,3574.6,3572.3,0.68935288]
[1718195404724,0.75,3574.6,3565.9,5.80433]
[1718195404725,0.75,3574.6,3569.2,0.2715794]
[1718195405041,0.29263942,3575.2,3569.0,1.30315579]
[1718195405243,1.2838,3590.2,3569.0,1.30315579]
[1718195405244,10.0,3588.3,3583.2,591.32617094]
[1718195405415,3.54052,3583.6,3583.2,584.03667496]
[1718195405740,3.54052,3583.6,3583.2,492.17468059]
[1718195405741,2.79072,3583.3,3583.2,492.17468059]
[1718195405909,2.79,3584.0,3583.2,472.44680307]
[1718195406243,0.75,3584.6,3583.2,279.73207976]
[1718195406576,2.79105,3582.9,3571.2,1.39436153]
[1718195406747,8.72e-06,3582.9,3575.6,5.60672]
[1718195406900,0.3864423,3584.5,3582.1,2.7916]
[1718195407238,2.79,3584.2,3574.7,0.34457237]
[1718195407543,0.3159,3578.2,3575.7,2.8]
[1718195407745,0.3159,3578.2,3577.8,3.0]
[1718195407947,0.46671487,3584.1,3575.8,0.31500507]
[1718195408119,2.79331,3580.0,3576.7,2.79]
[1718195408319,2.79,3580.4,3576.7,2.79]
[1718195408649,0.38138256,3581.8,3577.9,2.8]
[1718195408845,1.31840366,3590.2,3583.6,0.3778]
[1718195409016,0.27634542,3590.5,3583.7,12.2872]
[1718195409201,2.78679,3588.4,3583.8,0.43033618]
[1718195409406,0.56286941,3591.0,3586.0,1.695]
[1718195409628,2.78487,3590.9,3588.3,8.33]
[1718195409845,3.0,3592.7,3589.4,5.55]
[1718195410045,2.78103,3595.8,3591.5,0.75]
[1718195410204,0.46209486,3595.7,3592.0,8.19430553]
[1718195412657,4.186,3588.2,3586.7,0.0644953]
[1718195412844,2.79,3588.6,3584.4,0.43339205]
[1718195413046,0.75,3590.5,3586.3,4.13]
[1718195413282,2.7814,3595.4,3584.9,0.270825]
[1718195413283,3.0,3592.5,3584.9,0.270825]
[1718195413485,2.78721,3587.9,3586.4,0.39283368]
[1718195413782,1.31564952,3596.7,3591.7,0.65]
[1718195413983,2.08,3594.4,3593.6,0.65]
[1718195414299,2.08,3594.4,3591.8,8.6432611]
[1718195414300,4.186,3593.7,3591.8,0.2908611]
[1718195414448,1.32966707,3597.1,3592.5,5.56]
[1718195414653,1.32966707,3597.1,3588.9,1.695]
[1718195414654,4.186,3592.6,3588.8,0.75]
[1718195414847,2.78,3592.0,3589.5,0.75]
[1718195415071,2.78,3592.0,3584.0,1.32898624]
[1718195415072,0.75,3591.6,3585.1,2.78925]
[1718195415276,2.08,3589.5,3585.3,1.695]
[1718195415449,2.78,3588.3,3584.3,0.31010121]
[1718195415791,0.75,3583.7,3578.6,2.79434]
[1718195415996,3.916,3588.8,3578.6,2.79434]
[1718195415997,0.63606047,3584.2,3579.3,2.79]
[1718195416208,1.1768303,3588.2,3579.3,2.79]
[1718195416209,0.63606047,3582.8,3579.3,2.79]
[1718195416349,4.186,3582.7,3579.4,8.3774]
[1718195416552,4.186,3581.5,3579.4,8.3774]
[1718195416771,3.0,3582.6,3579.4,8.3774]
[1718195416772,0.34557327,3581.9,3579.4,8.3774]
[1718195417007,0.34557327,3582.7,3580.5,2.79]
[1718195417148,0.34557327,3584.8,3581.4,1.32]
[1718195417345,4.186,3586.5,3583.7,0.40442673]
[1718195417548,4.186,3586.5,3582.9,6.27333009]
[1718195417549,1.116383,3587.8,3584.1,1.32]
[1718195417744,0.34557327,3587.6,3585.1,2.79]
[1718195418052,0.34557327,3587.6,3584.2,8.7811]
[1718195418053,0.34557327,3587.2,3585.2,8.3677]
[1718195418277,0.34557327,3587.3,3585.2,8.3677]
[1718195418597,1.115207,3590.4,3586.1,6.26333009]
[1718195418816,1.115207,3590.4,3588.5,4.186]
[1718195418953,2.7826,3593.8,3586.2,15.2574]
[1718195418954,2.7826,3593.8,3589.9,4.186]
[1718195419289,2.77817,3599.5,3588.6,8.3598]
[1718195419290,2.78134,3595.4,3591.7,4.08]
[1718195419490,1.39446977,3596.9,3591.8,12.2444]
[1718195419651,3.28,3594.5,3591.8,8.68493359]
[1718195419849,3.28,3594.5,3591.0,0.75]
[1718195419850,3.28,3593.3,3591.0,0.75]
[1718195420051,3.28,3593.8,3584.7,1.38360865]
[1718195420364,2.08,3591.1,3585.4,2.78908]
[1718195420567,2.08,3591.1,3586.2,2.78]
[1718195420766,2.08,3591.1,3586.5,2.78819]
[1718195420967,2.50997429,3591.1,3586.6,8.3645]
[1718195421298,2.78,3589.4,3586.6,8.3645]
[1718195421466,0.42997429,3590.4,3585.1,2.78931]
[1718195421794,2.08,3589.1,3585.1,5.56931]
[1718195421999,0.44130177,3589.4,3585.0,2.78]
[1718195422155,0.06275852,3589.0,3585.4,1.3]
[1718195422355,2.78434,3591.6,3585.9,2.78866]
[1718195422603,2.78434,3591.6,3585.3,2.78]
[1718195422604,4.186,3590.8,3587.2,2.78]
[1718195422890,3.0,3593.5,3588.9,2.7863]
[1718195423124,3.0,3593.5,3587.3,4.3]
[1718195423125,9.93e-06,3590.7,3590.4,1.3]
[1718195423257,0.05382636,3593.4,3591.0,2.78]
[1718195423459,0.24029243,3599.6,3592.4,2.78363]
[1718195423460,0.75,3596.6,3592.4,2.78363]
[1718195423695,3.39e-06,3598.0,3593.3,2.78294]
[1718195423854,3.39e-06,3598.0,3593.6,2.78268]
[1718195423855,0.24032321,3597.6,3593.6,2.78268]
[1718195424054,3.36,3596.4,3591.0,1.33934937]
[1718195424295,3.36,3596.4,3581.2,2.79235]
[1718195424296,0.39343522,3597.5,3595.3,2.78137]
[1718195424489,0.36536235,3597.6,3591.4,0.75]
[1718195424654,0.36536235,3597.6,3585.6,3.0]
[1718195424655,4.204,3595.7,3592.9,2.78324]
[1718195424856,4.204,3595.7,3593.2,2.78296]
[1718195425117,0.05132483,3595.6,3593.2,0.75]
[1718195425438,2.77921,3598.2,3594.2,1.03]
[1718195425638,0.06490039,3602.3,3594.3,3.892]
[1718195425845,0.06490039,3602.3,3593.9,0.75]
[1718195425846,0.04934752,3598.1,3594.9,1.03]
[1718195426050,2.77805,3599.7,3595.8,1.03]
[1718195426354,0.0075,3601.5,3596.9,2.77]
[1718195426503,0.0075,3601.5,3597.5,2.77]
[1718195426834,0.0075,3601.5,3597.8,3.64]
[1718195427036,0.0075,3601.5,3599.6,2.77806]
[1718195427238,0.06490039,3602.3,3600.4,7.43]
[1718195427448,0.00482614,3606.1,3601.5,3.52659]
[1718195427660,0.25829437,3605.7,3605.6,0.75]
[1718195428028,0.25829437,3605.7,3604.1,0.38389123]
[1718195428220,4.204,3604.2,3602.1,0.5]
[1718195428427,4.204,3602.2,3600.0,0.53376351]
[1718195428717,4.204,3602.2,3593.3,0.06437684]
[1718195428718,2.78001,3597.1,3591.1,2.78462]
[1718195429019,2.78001,3597.1,3585.6,0.12655]
[1718195429020,4.204,3590.6,3590.5,2.77]
[1718195429231,2.78126,3595.5,3590.7,3.892]
[1718195429412,0.75,3595.2,3591.7,3.64]
[1718195429748,3.36,3596.2,3587.6,0.75]
[1718195429749,2.78297,3593.3,3587.6,0.75]
[1718195429951,1.05,3594.1,3585.4,1.37886476]
[1718195429952,1.05,3594.1,3589.8,2.77]
[1718195430165,4.204,3593.9,3589.3,3.89314159]
[1718195430308,4.754,3593.8,3591.8,1.05]
[1718195430508,2.78265,3593.7,3590.5,3.64]
[1718195430711,0.03782288,3593.8,3591.1,2.77]
[1718195430936,0.03935202,3593.6,3591.1,2.77]
[1718195431148,0.40352522,3596.9,3591.1,2.77]
[1718195431149,2.78079,3596.1,3591.1,2.77]
[1718195431326,2.79,3593.8,3589.5,3.0]
[1718195431671,2.78244,3594.0,3584.4,7.0582]
[1718195431672,6.7953,3591.7,3585.3,2.78912]
[1718195431886,1.05,3590.7,3588.1,1.114168]
[1718195432015,0.75,3589.4,3588.1,1.114168]
[1718195432220,6.7953,3591.7,3588.0,3.89314159]
[1718195432544,0.03586215,3591.6,3589.7,2.77]
[1718195432716,0.03586215,3591.6,3589.3,2.77]
[1718195433059,6.9396,3594.1,3590.2,1.05]
[1718195433217,6.9396,3594.1,3589.4,0.277]
[1718195433571,0.75,3597.7,3588.8,6.89314159]
[1718195433572,6.9302,3591.3,3588.8,0.36025014]
[1718195433713,0.75,3589.1,3583.9,0.75]
[1718195434052,0.75,3588.1,3584.7,2.77]
[1718195434363,1.17382854,3589.4,3586.2,2.77]
[1718195434544,4.204,3594.2,3587.6,2.77]
[1718195434724,0.03275184,3589.3,3587.6,2.77]
[1718195435067,2.78441,3591.5,3586.2,0.33386012]
[1718195435213,3.36,3589.7,3584.4,1.114451]
[1718195435414,1.06,3590.2,3585.7,2.77]
[1718195435644,0.43632936,3591.7,3586.8,2.77]
[1718195435815,4.204,3592.3,3588.9,1.06]
[1718195436019,0.03461927,3592.2,3590.2,2.77]
[1718195436220,0.75,3594.9,3590.2,2.77]
[1718195436460,0.75,3594.9,3590.0,1.06]
[1718195436461,4.204,3593.0,3591.3,2.77]
[1718195436680,1.05,3595.5,3591.3,2.77]
[1718195436849,1.05,3595.5,3590.0,3.64]
[1718195436850,4.204,3592.5,3591.4,8.3533]
[1718195437018,1.05,3594.4,3591.4,8.3533]
[1718195437221,1.05,3593.3,3588.9,2.78634]
[1718195437448,0.0352394,3593.2,3590.5,2.77]
[1718195437983,4.204,3594.2,3590.5,2.77]
[1718195438154,4.204,3593.1,3590.1,2.78543]
[1718195438328,4.204,3591.9,3586.9,0.75]
[1718195438528,4.204,3591.9,3585.5,7.3663]
[1718195438529,2.78329,3592.9,3588.7,2.77]
[1718195438739,1.06,3593.4,3589.0,2.78623]
[1718195438959,1.06,3593.4,3587.6,1.05]
[1718195438960,6.8745,3592.1,3589.1,8.3586]
[1718195439274,6.8745,3592.1,3584.2,1.36616665]
[1718195439275,4.204,3590.4,3584.2,1.36616665]
[1718195439456,4.204,3591.6,3587.0,1.06]
[1718195439793,2.78265,3593.7,3588.2,6.41]
[1718195440065,7.1391,3594.1,3588.2,3.64]
[1718195440066,4.204,3592.6,3588.2,3.64]
[1718195440221,4.204,3591.4,3588.3,8.3543]
[1718195440418,0.03282938,3591.3,3589.3,2.77]
[1718195440727,2.78302,3593.3,3589.4,8.3579]
[1718195441061,4.204,3593.1,3589.4,8.3579]
[1718195441557,0.03272141,3593.0,3589.4,11.14386]
[1718195441857,2.78107,3595.8,3593.1,0.02483603]
[1718195442063,3.36,3596.0,3593.1,0.02483603]
[1718195442233,1.05,3596.2,3590.0,2.78549]
[1718195442234,2.7818,3594.8,3590.0,2.78549]
[1718195442421,3.84,3596.2,3590.1,0.30946873]
[1718195442422,2.78264,3593.7,3590.1,0.30946873]
[1718195442621,2.78264,3593.7,3590.1,0.75]
[1718195442821,2.78264,3593.7,3589.9,3.64]
[1718195443037,2.78264,3593.7,3590.5,2.77]
[1718195443354,1.06,3594.2,3590.3,3.89314159]
[1718195443555,4.204,3595.6,3591.3,2.77]
[1718195443862,2.78149,3595.2,3591.0,0.35051645]
[1718195444018,2.78226,3594.2,3590.4,2.78514]
[1718195444240,2.78226,3594.2,3589.9,6.66314159]
[1718195444580,2.78226,3594.2,3590.2,2.78529]
[1718195444749,2.78226,3594.2,3589.8,3.64]
[1718195444953,3.36,3594.8,3589.5,8.1387]
[1718195445189,4.204,3596.9,3592.0,2.77]
[1718195445496,4.204,3596.9,3591.4,1.04]
[1718195445497,2.78096,3595.9,3592.1,8.3517]
[1718195445785,4.204,3595.0,3590.8,2.78484]
[1718195445979,2.78253,3593.9,3590.2,3.64]
[1718195446211,2.78253,3593.9,3589.6,3.64]
[1718195446346,2.78265,3593.7,3589.9,2.78558]
[1718195446679,2.78179,3594.8,3590.7,2.77]
[1718195446888,4.204,3595.0,3591.3,2.78444]
[1718195447055,2.78153,3595.2,3592.1,2.765]
[1718195447243,2.78299,3593.3,3589.7,1.35087]
[1718195447445,2.78376,3592.3,3589.7,1.35087]
[1718195447647,11.3379,3594.1,3589.1,6.65814159]
[1718195447847,2.78383,3592.2,3589.1,7.40814159]
[1718195448051,2.78383,3592.2,3589.1,2.765]
[1718195448247,11.3379,3594.1,3589.1,2.765]
[1718195448248,11.3379,3594.1,3589.2,8.355]
[1718195448494,6.98723,3593.0,3589.2,8.355]
[1718195448649,1.05,3593.6,3589.3,0.8355]
[1718195448850,0.03098356,3592.9,3589.7,2.765]
[1718195449049,4.97,3593.5,3589.4,8.3579]
[1718195449248,2.78334,3592.9,3589.4,8.3579]
[1718195449499,0.03386233,3593.4,3589.4,8.3579]
[1718195449645,0.02820745,3592.8,3589.4,8.3579]
[1718195449851,3.36,3592.9,3587.3,2.78755]
[1718195449852,2.78351,3592.6,3589.5,0.83579]
[1718195450089,2.78351,3592.6,3588.9,2.765]
[1718195450302,1.06,3593.6,3589.0,2.78628]
[1718195450578,4.204,3592.6,3588.3,2.765]
[1718195450760,2.78358,3592.5,3588.3,2.765]
[1718195451084,6.14358,3592.5,3588.3,2.765]
[1718195451288,1.06,3593.6,3588.4,4.16964159]
[1718195451450,2.78352,3592.6,3589.0,0.75]
[1718195451645,3.36,3593.1,3589.1,8.3586]
[1718195451885,2.78263,3593.8,3589.4,2.78591]
[1718195452184,2.78263,3593.8,3589.7,2.78567]
[1718195452361,3.42534622,3594.0,3589.6,2.765]
[1718195452362,2.7828,3593.5,3589.8,11.08893094]
[1718195452559,0.06534622,3594.0,3589.9,2.78559]
[1718195452765,2.7826,3593.8,3590.0,8.3565]
[1718195452961,0.06534622,3593.7,3590.0,8.3565]
[1718195453295,0.06534622,3593.7,3590.7,2.765]
[1718195453588,6.7758,3597.5,3592.2,7.2442]
[1718195453792,2.7802,3596.9,3592.3,13.89992]
[1718195453989,1.05,3596.3,3592.3,13.89992]
[1718195454290,2.78164,3595.0,3592.3,8.3512]
[1718195454492,2.78254,3593.9,3592.3,8.3512]
[1718195454663,2.78241,3594.0,3592.3,8.3512]
[1718195454864,3.36,3595.5,3589.8,4.176457]
[1718195455063,2.78307,3593.2,3590.0,2.765]
[1718195455269,2.78307,3593.2,3589.5,6.405]
[1718195455589,2.78307,3593.2,3587.7,4.204]
[1718195455590,3.0,3593.1,3587.8,0.75]
[1718195455805,1.05,3592.6,3588.5,8.3548]
[1718195455958,7.1628,3593.6,3588.5,8.3548]
[1718195455959,2.78359,3592.5,3590.2,0.75]
[1718195456303,3.0,3593.0,3590.2,0.75]
[1718195456304,1.05,3592.6,3590.2,0.75]
[1718195456603,2.78455,3591.3,3590.2,0.75]
[1718195456801,1.05,3591.0,3589.9,6.7761]
[1718195457007,2.78305,3593.2,3588.9,4.204]
[1718195457210,2.78305,3593.2,3588.6,2.765]
[1718195457378,2.78305,3593.2,3588.9,2.78633]
[1718195457580,2.78305,3593.2,3588.6,2.765]
[1718195457581,2.78305,3593.2,3589.3,2.78604]
[1718195457810,2.69175,3593.2,3589.4,8.3579]
[1718195457969,1.06,3593.8,3589.7,5.55071]
[1718195458312,4.204,3596.1,3589.5,5.318394]
[1718195458313,2.78116,3595.7,3590.9,10.1417]
[1718195458514,10.13001,3596.9,3592.3,2.765]
[1718195458820,2.78021,3596.9,3592.8,5.254]
[1718195459028,0.75,3597.4,3593.0,7.3101]
[1718195459307,0.75,3597.4,3593.9,0.75]
[1718195459490,2.77851,3599.1,3595.4,2.78126]
[1718195459690,2.77851,3599.1,3595.5,8.3438]
[1718195460005,2.77726,3600.7,3596.6,2.78034]
[1718195460217,2.77816,3599.6,3596.7,8.341]
[1718195460422,0.75,3600.4,3596.7,8.341]
[1718195460727,1.112282,3601.3,3596.7,8.341]
[1718195461009,0.75,3601.2,3597.2,4.204]
[1718195461182,0.75,3601.2,3597.3,11.53985]
[1718195461382,0.75,3601.2,3598.4,4.204]
[1718195461711,0.47489947,3605.5,3601.3,0.75]
[1718195461712,0.48964914,3605.5,3601.3,0.75]
[1718195461886,0.48964914,3605.5,3602.2,2.77604]
[1718195462063,0.03221109,3605.4,3602.9,2.77553]
[1718195462281,2.77181,3607.8,3603.0,12.21954159]
[1718195462492,2.77181,3607.8,3601.5,0.373709]
[1718195462777,2.77358,3605.5,3599.0,0.29949333]
[1718195462977,10.8929,3605.6,3597.3,0.4204]
[1718195462978,4.204,3602.7,3597.3,0.4204]
[1718195463178,4.204,3601.6,3597.7,0.3218797]
[1718195463410,4.204,3601.6,3595.3,6.8782]
[1718195463411,2.77671,3601.4,3595.9,2.78094]
[1718195463630,4.204,3600.3,3595.2,0.37868999]
[1718195463770,2.7771,3600.9,3595.9,0.75]
[1718195463967,2.7771,3600.9,3595.3,6.67450159]
[1718195464166,2.77772,3600.1,3595.4,15.3484]
[1718195464404,2.77811,3599.6,3595.4,15.3484]
[1718195464612,2.77688,3601.2,3596.0,0.75]
[1718195464796,0.37679473,3602.6,3597.6,0.75]
[1718195464996,7.2968,3602.9,3597.7,8.3387]
[1718195464997,2.77592,3602.5,3597.7,8.3387]
[1718195465204,7.4956,3601.0,3597.7,0.3950547]
[1718195465520,7.4956,3601.0,3595.4,1.111701]
[1718195465521,2.77874,3598.8,3595.4,1.111701]
[1718195465709,0.37643032,3600.9,3595.6,6.8406]
[1718195465921,2.77621,3602.1,3597.1,0.75]
[1718195466075,2.77621,3602.1,3596.3,2.78056]
[1718195466076,0.75,3602.7,3598.3,0.75]
[1718195466269,0.75,3602.7,3598.4,8.3322]
[1718195466470,2.7761,3602.2,3598.5,4.80136159]
[1718195466678,0.75,3602.7,3598.6,8.3366]
[1718195466886,2.7739,3605.1,3598.9,0.75]
[1718195467084,7.4525,3606.0,3601.0,0.75]
[1718195467317,7.4525,3606.0,3601.1,8.3308]
[1718195467518,0.489649,3608.8,3601.1,8.3308]
[1718195467519,0.0296408,3605.6,3601.4,2.77667]
[1718195467824,0.38902477,3605.7,3601.2,11.16378]
[1718195467825,0.38902477,3605.7,3602.2,3.0]
[1718195468129,0.38902477,3605.7,3601.2,8.16378]
[1718195468130,0.38902477,3605.7,3603.6,0.75]
[1718195468514,0.02851832,3605.6,3603.7,10.64384159]
[1718195468827,0.38902477,3605.7,3603.9,2.77475]
[1718195468983,0.38902477,3605.7,3603.7,6.7507]
[1718195468984,0.38902477,3605.7,3604.0,10.109095]
[1718195469184,0.38902477,3605.7,3604.0,8.3241]
[1718195469496,3.16241477,3605.7,3601.9,6.8526]
[1718195469684,0.38902477,3605.7,3602.0,3.89314159]
[1718195469884,0.02908466,3605.6,3602.1,2.77615]
[1718195470084,2.77126,3608.5,3603.9,0.75]
[1718195470348,2.77126,3608.5,3604.1,2.77455]
[1718195470595,4.204,3609.7,3604.3,2.77445]
[1718195470932,4.204,3609.7,3604.2,0.74176916]
[1718195470933,2.7712,3608.6,3604.7,0.75]
[1718195471133,2.77171,3607.9,3604.7,0.75]
[1718195471340,2.80197036,3607.9,3604.1,3.89314159]
[1718195471706,0.03026036,3607.9,3604.3,7.2026]
[1718195471901,0.03026036,3607.9,3605.0,0.75]
[1718195472208,4.204,3610.3,3605.8,3.0]
[1718195472438,4.204,3609.1,3605.9,8.3197]
[1718195472744,2.77055,3609.4,3605.9,3.89314159]
[1718195473154,7.1,3612.1,3605.9,3.89314159]
[1718195473155,0.2815683,3619.4,3612.2,7.036]
[1718195473315,1.45269,3622.4,3619.8,2.76252]
[1718195473519,0.28177223,3629.0,3619.8,2.76252]
[1718195473732,3.0,3627.1,3619.8,2.76252]
[1718195473945,4.204,3622.5,3619.9,2.97235242]
[1718195474249,1.105409,3625.1,3616.8,7.3277]
[1718195474250,3.822,3622.8,3618.3,0.75]
[1718195474435,3.822,3622.8,3616.6,0.1228]